fUSD/lending_fUSD_20260622
["ID","MTS","AMOUNT","RATE_DAILY","PERIOD"]
[426056248,1782131572000,-584.59,0.00030958,2]
[426056259,1782131572000,-786.59,0.00030958,2]
[426056237,1782131572000,-500.0,0.00030958,2]
[426056238,1782131572000,-703.04,0.00030958,2]
[426056236,1782131572000,-1255.65,0.00030958,2]
[426056232,1782131572000,-500.0,0.00030958,2]
[426056231,1782131572000,-548.72,0.00030958,2]
[426056234,1782131572000,-725.12,0.00030958,2]
[426056233,1782131572000,-691.46,0.00030958,2]
[426056235,1782131572000,-500.0,0.00030958,2]
[426056249,1782131572000,-608.59,0.00030958,2]
[426056247,1782131572000,-500.0,0.00030958,2]
[426056242,1782131572000,-944.23,0.00030958,2]
[426056261,1782131572000,-540.55,0.00030958,2]
[426056244,1782131572000,-243.58480413,0.00030958,2]
[426056239,1782131572000,-531.43,0.00030958,2]
[426056245,1782131572000,-856.58,0.00030958,2]
[426056243,1782131572000,-500.0,0.00030958,2]
[426056246,1782131572000,-850.25,0.00030958,2]
[426056241,1782131572000,-1040.83,0.00030958,2]
[426056260,1782131572000,-670.91,0.00030958,2]
[426056256,1782131572000,-500.0,0.00030958,2]
[426056258,1782131572000,-1046.3,0.00030958,2]
[426056257,1782131572000,-500.0,0.00030958,2]
[426056252,1782131572000,-523.74,0.00030958,2]
[426056250,1782131572000,-500.0,0.00030958,2]
[426056240,1782131572000,-617.49,0.00030958,2]
[426056285,1782131572000,-500.0,0.00030958,2]
[426056284,1782131572000,-500.0,0.00030958,2]
[426056288,1782131572000,-1250.12,0.00030958,2]
[426056317,1782131572000,-500.0,0.00030958,2]
[426056320,1782131572000,-500.0,0.00030958,2]
[426056323,1782131572000,-500.0,0.00030958,2]
[426056322,1782131572000,-3639.77,0.00030958,2]
[426056318,1782131572000,-784.71,0.00030958,2]
[426056319,1782131572000,-1443.16,0.00030958,2]
[426056321,1782131572000,-600.74,0.00030958,2]
[426056325,1782131572000,-636.07,0.00030958,2]
[426056324,1782131572000,-1050.73,0.00030958,2]
[426056326,1782131572000,-510.38,0.00030958,2]
[426056327,1782131572000,-500.0,0.00030958,2]
[426056313,1782131572000,-500.0,0.00030958,2]
[426056330,1782131572000,-500.0,0.00030958,2]
[426056331,1782131572000,-945.27,0.00030958,2]
[426056332,1782131572000,-526.09,0.00030958,2]
[426056329,1782131572000,-500.0,0.00030958,2]
[426056338,1782131572000,-694.68,0.00030958,2]
[426056334,1782131572000,-590.33,0.00030958,2]
[426056328,1782131572000,-700.32,0.00030958,2]
[426056335,1782131572000,-986.53,0.00030958,2]
[426056336,1782131572000,-500.0,0.00030958,2]
[426056337,1782131572000,-1014.22,0.00030958,2]
[426056339,1782131572000,-500.0,0.00030958,2]
[426056287,1782131572000,-500.0,0.00030958,2]
[426056333,1782131572000,-541.49,0.00030958,2]
[426056311,1782131572000,-758.34,0.00030958,2]
[426056340,1782131572000,-696.96,0.00030958,2]
[426056310,1782131572000,-500.0,0.00030958,2]
[426056286,1782131572000,-524.23,0.00030958,2]
[426056293,1782131572000,-521.74,0.00030958,2]
[426056289,1782131572000,-858.12,0.00030958,2]
[426056291,1782131572000,-577.94,0.00030958,2]
[426056295,1782131572000,-689.12,0.00030958,2]
[426056292,1782131572000,-788.02,0.00030958,2]
[426056290,1782131572000,-1069.93,0.00030958,2]
[426056314,1782131572000,-940.86,0.00030958,2]
[426056297,1782131572000,-500.0,0.00030958,2]
[426056296,1782131572000,-3364.63,0.00030958,2]
[426056298,1782131572000,-879.63,0.00030958,2]
[426056299,1782131572000,-500.0,0.00030958,2]
[426056294,1782131572000,-740.41,0.00030958,2]
[426056304,1782131572000,-869.96,0.00030958,2]
[426056312,1782131572000,-500.0,0.00030958,2]
[426056302,1782131572000,-294.90619034,0.00030958,2]
[426056316,1782131572000,-500.0,0.00030958,2]
[426056309,1782131572000,-501.26,0.00030958,2]
[426056306,1782131572000,-500.0,0.00030958,2]
[426056308,1782131572000,-500.0,0.00030958,2]
[426056307,1782131572000,-635.95,0.00030958,2]
[426056300,1782131572000,-4029.46,0.00030958,2]
[426056303,1782131572000,-739.67,0.00030958,2]
[426056305,1782131572000,-500.0,0.00030958,2]
[426056301,1782131572000,-500.0,0.00030958,2]
[426056315,1782131572000,-873.39,0.00030958,2]
[426056376,1782131573000,-500.0,0.00030958,2]
[426056380,1782131573000,-596.6,0.00030958,2]
[426056377,1782131573000,-500.0,0.00030958,2]
[426056381,1782131573000,-626.46,0.00030958,2]
[426056370,1782131573000,-1075.88,0.00030958,2]
[426056375,1782131573000,-519.81,0.00030958,2]
[426056372,1782131573000,-500.0,0.00030958,2]
[426056368,1782131573000,-1369.37,0.00030958,2]
[426056366,1782131573000,-1352.1,0.00030958,2]
[426056374,1782131573000,-3183.96,0.00030958,2]
[426056378,1782131573000,-500.0,0.00030958,2]
[426056389,1782131573000,-2693.07,0.00030958,2]
[426056373,1782131573000,-500.0,0.00030958,2]
[426056382,1782131573000,-500.0,0.00030958,2]
[426056384,1782131573000,-512.67,0.00030958,2]
[426056383,1782131573000,-212.67542749,0.00030958,2]
[426056385,1782131573000,-500.0,0.00030958,2]
[426056387,1782131573000,-500.0,0.00030958,2]
[426056386,1782131573000,-542.05,0.00030958,2]
[426056388,1782131573000,-500.0,0.00030958,2]
[426056391,1782131573000,-861.51,0.00030958,2]
[426056392,1782131573000,-566.57,0.00030958,2]
[426056371,1782131573000,-806.98,0.00030958,2]
[426056379,1782131573000,-532.35368787,0.00030958,2]
[426056369,1782131573000,-500.0,0.00030958,2]
[426056359,1782131573000,-500.0,0.00030958,2]
[426056367,1782131573000,-827.96,0.00030958,2]
[426056390,1782131573000,-733.03,0.00030958,2]
[426056349,1782131573000,-562.61,0.00030958,2]
[426056348,1782131573000,-700.09,0.00030958,2]
[426056347,1782131573000,-500.0,0.00030958,2]
[426056346,1782131573000,-571.32,0.00030958,2]
[426056345,1782131573000,-500.0,0.00030958,2]
[426056342,1782131573000,-846.46,0.00030958,2]
[426056344,1782131573000,-500.0,0.00030958,2]
[426056341,1782131573000,-500.0,0.00030958,2]
[426056343,1782131573000,-928.29,0.00030958,2]
[426056356,1782131573000,-739.97,0.00030958,2]
[426056364,1782131573000,-500.0,0.00030958,2]
[426056358,1782131573000,-500.0,0.00030958,2]
[426056352,1782131573000,-500.0,0.00030958,2]
[426056351,1782131573000,-559.62,0.00030958,2]
[426056354,1782131573000,-500.0,0.00030958,2]
[426056353,1782131573000,-500.0,0.00030958,2]
[426056355,1782131573000,-500.0,0.00030958,2]
[426056360,1782131573000,-500.0,0.00030958,2]
[426056357,1782131573000,-3267.88,0.00030958,2]
[426056362,1782131573000,-816.43,0.00030958,2]
[426056361,1782131573000,-905.07,0.00030958,2]
[426056363,1782131573000,-558.4,0.00030958,2]
[426056365,1782131573000,-500.0,0.00030958,2]
[426056350,1782131573000,-739.97,0.00030958,2]
[426056393,1782131573000,-500.0,0.00030958,2]
[426056394,1782131573000,-804.78,0.00030958,2]
[426056402,1782131573000,-500.0,0.00030958,2]
[426056421,1782131573000,-1302.85,0.00030958,2]
[426056427,1782131573000,-1158.24,0.00030958,2]
[426056426,1782131573000,-784.56,0.00030958,2]
[426056430,1782131573000,-500.0,0.00030958,2]
[426056428,1782131573000,-567.35,0.00030958,2]
[426056431,1782131573000,-546.18,0.00030958,2]
[426056433,1782131573000,-1271.92,0.00030958,2]
[426056429,1782131573000,-519.8,0.00030958,2]
[426056432,1782131573000,-500.0,0.00030958,2]
[426056435,1782131573000,-1496.54,0.00030958,2]
[426056436,1782131573000,-407.94,0.00030958,2]
[426056425,1782131573000,-500.0,0.00030958,2]
[426056437,1782131573000,-3395.17,0.00030958,2]
[426056441,1782131573000,-711.86,0.00030958,2]
[426056440,1782131573000,-695.59,0.00030958,2]
[426056438,1782131573000,-500.0,0.00030958,2]
[426056443,1782131573000,-504.85,0.00030958,2]
[426056442,1782131573000,-1838.48,0.00030958,2]
[426056445,1782131573000,-500.0,0.00030958,2]
[426056444,1782131573000,-500.0,0.00030958,2]
[426056446,1782131573000,-500.0,0.00030958,2]
[426056448,1782131573000,-6186.73,0.00030958,2]
[426056447,1782131573000,-4341.82,0.00030958,2]
[426056395,1782131573000,-593.89,0.00030958,2]
[426056439,1782131573000,-1362.17,0.00030958,2]
[426056416,1782131573000,-699.61,0.00030958,2]
[426056434,1782131573000,-296.15,0.00030958,2]
[426056424,1782131573000,-636.95,0.00030958,2]
[426056449,1782131573000,-4113.41,0.00030958,2]
[426056423,1782131573000,-3549.98,0.00030958,2]
[426056396,1782131573000,-2103.48,0.00030958,2]
[426056397,1782131573000,-500.0,0.00030958,2]
[426056398,1782131573000,-500.0,0.00030958,2]
[426056401,1782131573000,-500.0,0.00030958,2]
[426056400,1782131573000,-500.0,0.00030958,2]
[426056399,1782131573000,-500.0,0.00030958,2]
[426056414,1782131573000,-500.0,0.00030958,2]
[426056403,1782131573000,-439.3,0.00030958,2]
[426056405,1782131573000,-2746.21,0.00030958,2]
[426056406,1782131573000,-785.53,0.00030958,2]
[426056407,1782131573000,-500.0,0.00030958,2]
[426056404,1782131573000,-554.28,0.00030958,2]
[426056422,1782131573000,-553.22,0.00030958,2]
[426056420,1782131573000,-604.11,0.00030958,2]
[426056408,1782131573000,-698.47,0.00030958,2]
[426056418,1782131573000,-500.0,0.00030958,2]
[426056419,1782131573000,-500.0,0.00030958,2]
[426056415,1782131573000,-500.0,0.00030958,2]
[426056417,1782131573000,-1326.5,0.00030958,2]
[426056410,1782131573000,-1155.68,0.00030958,2]
[426056412,1782131573000,-585.33,0.00030958,2]
[426056411,1782131573000,-626.49,0.00030958,2]
[426056409,1782131573000,-1706.4,0.00030958,2]
[426056413,1782131573000,-830.91,0.00030958,2]
[426056489,1782131574000,-9672.86,0.00030958,2]
[426056490,1782131574000,-658.07,0.00030958,2]
[426056495,1782131574000,-8639.58,0.00030958,2]
[426056487,1782131574000,-7004.08,0.00030958,2]
[426056484,1782131574000,-6597.51,0.00030958,2]
[426056477,1782131574000,-346.96303077,0.00030958,2]
[426056480,1782131574000,-4227.56,0.00030958,2]
[426056475,1782131574000,-500.0,0.00030958,2]
[426056483,1782131574000,-4492.09,0.00030958,2]
[426056486,1782131574000,-242.2,0.00030958,2]
[426056485,1782131574000,-5976.83,0.00030958,2]
[426056491,1782131574000,-909.43,0.00030958,2]
[426056499,1782131574000,-500.0,0.00030958,2]
[426056488,1782131574000,-500.0,0.00030958,2]
[426056493,1782131574000,-500.0,0.00030958,2]
[426056494,1782131574000,-1002.58,0.00030958,2]
[426056497,1782131574000,-8686.62,0.00030958,2]
[426056498,1782131574000,-919.77,0.00030958,2]
[426056501,1782131574000,-5625.93,0.00030958,2]
[426056502,1782131574000,-500.0,0.00030958,2]
[426056505,1782131574000,-500.0,0.00030958,2]
[426056504,1782131574000,-844.33,0.00030958,2]
[426056496,1782131574000,-4376.06,0.00030958,2]
[426056503,1782131574000,-775.18,0.00030958,2]
[426056478,1782131574000,-500.0,0.00030958,2]
[426056492,1782131574000,-500.0,0.00030958,2]
[426056479,1782131574000,-500.0,0.00030958,2]
[426056450,1782131574000,-2940.44,0.00030958,2]
[426056476,1782131574000,-500.0,0.00030958,2]
[426056506,1782131574000,-500.0,0.00030958,2]
[426056460,1782131574000,-2000.0,0.00030958,2]
[426056453,1782131574000,-5138.93,0.00030958,2]
[426056452,1782131574000,-616.23,0.00030958,2]
[426056451,1782131574000,-11028.8,0.00030958,2]
[426056454,1782131574000,-847.85,0.00030958,2]
[426056457,1782131574000,-500.0,0.00030958,2]
[426056456,1782131574000,-849.12,0.00030958,2]
[426056455,1782131574000,-1204.89,0.00030958,2]
[426056459,1782131574000,-8197.77,0.00030958,2]
[426056458,1782131574000,-500.0,0.00030958,2]
[426056462,1782131574000,-3373.56,0.00030958,2]
[426056473,1782131574000,-7121.05,0.00030958,2]
[426056472,1782131574000,-1413.15,0.00030958,2]
[426056465,1782131574000,-685.72,0.00030958,2]
[426056464,1782131574000,-570.0,0.00030958,2]
[426056471,1782131574000,-500.0,0.00030958,2]
[426056469,1782131574000,-1010.5,0.00030958,2]
[426056463,1782131574000,-687.7,0.00030958,2]
[426056470,1782131574000,-591.59,0.00030958,2]
[426056468,1782131574000,-557.86,0.00030958,2]
[426056466,1782131574000,-713.2,0.00030958,2]
[426056467,1782131574000,-209.33536925,0.00030958,2]
[426056474,1782131574000,-657.57,0.00030958,2]
[426056481,1782131574000,-6843.28,0.00030958,2]
[426056482,1782131574000,-1169.7,0.00030958,2]
[426056461,1782131574000,-500.0,0.00030958,2]
[426056507,1782131574000,-1087.5,0.00030958,2]
[426056500,1782131574000,-500.0,0.00030958,2]
[426056509,1782131574000,-500.0,0.00030958,2]
[426056533,1782131574000,-438.71357671,0.00030958,2]
[426056538,1782131574000,-405.06,0.00030959,120]
[426056541,1782131574000,-200.0,0.00030994,2]
[426056544,1782131574000,-50000.0,0.00031,4]
[426056543,1782131574000,-50000.0,0.00031,2]
[426056553,1782131574000,-529.07,0.00031,2]
[426056552,1782131574000,-10000.0,0.00031,30]
[426056547,1782131574000,-393.50451907,0.00031,14]
[426056548,1782131574000,-6915.6279,0.00031,60]
[426056554,1782131574000,-467.7,0.00031,2]
[426056546,1782131574000,-3000.0,0.00031,20]
[426056545,1782131574000,-50000.0,0.00031,3]
[426056542,1782131574000,-150.0,0.00030996,120]
[426056549,1782131574000,-1500.0,0.00031,3]
[426056551,1782131574000,-325.0,0.00031,90]
[426056556,1782131574000,-2017.61765851,0.00031,120]
[426056557,1782131574000,-324.65,0.00031,7]
[426056560,1782131574000,-20000.0,0.00031,120]
[426056555,1782131574000,-467.28,0.00031,2]
[426056564,1782131574000,-22500.0,0.00031,2]
[426056558,1782131574000,-690.02639943,0.00031,120]
[426056559,1782131574000,-348.10783233,0.00031,120]
[426056565,1782131574000,-25000.0,0.00031,2]
[426056561,1782131574000,-511.2413346,0.00031,120]
[426056566,1782131574000,-25000.0,0.00031,2]
[426056563,1782131574000,-10000.0,0.00031,2]
[426056550,1782131574000,-2027.67470086,0.00031,120]
[426056539,1782131574000,-228.55605509,0.00030974,120]
[426056562,1782131574000,-1000.9231246,0.00031,120]
[426056535,1782131574000,-500.0,0.00030958,2]
[426056534,1782131574000,-500.0,0.00030958,2]
[426056516,1782131574000,-513.61,0.00030958,2]
[426056514,1782131574000,-282.0832336,0.00030958,2]
[426056512,1782131574000,-2044.4,0.00030958,2]
[426056513,1782131574000,-4175.97,0.00030958,2]
[426056517,1782131574000,-500.0,0.00030958,2]
[426056510,1782131574000,-729.92,0.00030958,2]
[426056515,1782131574000,-500.0,0.00030958,2]
[426056508,1782131574000,-912.76,0.00030958,2]
[426056518,1782131574000,-895.47,0.00030958,2]
[426056520,1782131574000,-781.2,0.00030958,2]
[426056530,1782131574000,-500.0,0.00030958,2]
[426056531,1782131574000,-1013.21,0.00030958,2]
[426056511,1782131574000,-2905.9,0.00030958,2]
[426056522,1782131574000,-500.0,0.00030958,2]
[426056521,1782131574000,-554.0,0.00030958,2]
[426056537,1782131574000,-530.352991,0.00030959,2]
[426056540,1782131574000,-523.0,0.00030986,2]
[426056532,1782131574000,-948.85,0.00030958,2]
[426056529,1782131574000,-879.74,0.00030958,2]
[426056528,1782131574000,-500.0,0.00030958,2]
[426056536,1782131574000,-984.2,0.00030958,2]
[426056526,1782131574000,-805.85,0.00030958,2]
[426056525,1782131574000,-537.51,0.00030958,2]
[426056523,1782131574000,-1281.85,0.00030958,2]
[426056524,1782131574000,-777.53,0.00030958,2]
[426056519,1782131574000,-500.0,0.00030958,2]
[426056527,1782131574000,-251.84953495,0.00030958,2]
[426056607,1782131575000,-185.11,0.00031168,2]
[426056605,1782131575000,-396.29,0.00031163,2]
[426056611,1782131575000,-185.19,0.00031168,2]
[426056613,1782131575000,-573.65,0.00031169,2]
[426056598,1782131575000,-1209.76339961,0.00031158,2]
[426056600,1782131575000,-1297.86128047,0.00031158,2]
[426056597,1782131575000,-1215.85569261,0.00031158,2]
[426056595,1782131575000,-1123.74949609,0.00031158,2]
[426056596,1782131575000,-1166.48403681,0.00031158,2]
[426056602,1782131575000,-1425.74328766,0.00031158,2]
[426056609,1782131575000,-573.66,0.00031168,2]
[426056610,1782131575000,-573.46,0.00031168,2]
[426056603,1782131575000,-1354.02922786,0.00031158,2]
[426056606,1782131575000,-151.0,0.00031163,2]
[426056608,1782131575000,-482.46,0.00031168,2]
[426056612,1782131575000,-573.66,0.00031168,2]
[426056599,1782131575000,-1383.83675822,0.00031158,2]
[426056615,1782131575000,-573.66,0.00031169,2]
[426056624,1782131575000,-1000.0,0.000312,7]
[426056623,1782131575000,-333.8,0.000312,90]
[426056614,1782131575000,-574.16,0.00031169,2]
[426056616,1782131575000,-573.66,0.00031169,2]
[426056618,1782131575000,-151.0,0.00031173,2]
[426056617,1782131575000,-573.69,0.00031169,2]
[426056604,1782131575000,-1269.60285924,0.00031158,2]
[426056594,1782131575000,-573.21,0.00031151,2]
[426056586,1782131575000,-1624.05,0.00031027,2]
[426056592,1782131575000,-185.21,0.0003115,2]
[426056622,1782131575000,-151.0,0.00031178,2]
[426056568,1782131575000,-287.89,0.00031,30]
[426056567,1782131575000,-2500.0,0.00031,2]
[426056570,1782131575000,-160.0,0.00031,120]
[426056569,1782131575000,-160.0,0.00031,120]
[426056571,1782131575000,-160.0,0.00031,120]
[426056575,1782131575000,-150.0,0.00031018,120]
[426056572,1782131575000,-150.0,0.00031011,2]
[426056576,1782131575000,-489.0,0.00031018,30]
[426056573,1782131575000,-150.0,0.00031012,120]
[426056574,1782131575000,-1475.31,0.00031015,2]
[426056577,1782131575000,-156.0,0.00031018,30]
[426056578,1782131575000,-202.0,0.00031018,30]
[426056579,1782131575000,-251.0,0.0003102,2]
[426056581,1782131575000,-251.0,0.0003102,2]
[426056585,1782131575000,-251.0,0.0003102,2]
[426056589,1782131575000,-775.4783256,0.00031116,2]
[426056588,1782131575000,-668.65185756,0.00031116,2]
[426056583,1782131575000,-251.0,0.0003102,2]
[426056582,1782131575000,-251.0,0.0003102,2]
[426056584,1782131575000,-251.0,0.0003102,2]
[426056587,1782131575000,-2500.0,0.00031102,2]
[426056591,1782131575000,-1794.79,0.00031137,2]
[426056601,1782131575000,-1390.76696114,0.00031158,2]
[426056590,1782131575000,-22500.0,0.00031125,2]
[426056593,1782131575000,-573.66,0.0003115,2]
[426056580,1782131575000,-251.0,0.0003102,2]
[426056620,1782131575000,-396.29,0.00031175,2]
[426056621,1782131575000,-185.21,0.00031176,2]
[426056653,1782131575000,-500.0,0.00031232,2]
[426056651,1782131575000,-500.0,0.00031232,2]
[426056654,1782131575000,-714.12,0.00031232,2]
[426056649,1782131575000,-983.84,0.00031232,2]
[426056658,1782131575000,-500.0,0.00031232,2]
[426056661,1782131575000,-500.0,0.00031232,2]
[426056660,1782131575000,-614.75,0.00031232,2]
[426056662,1782131575000,-1404.94,0.00031232,2]
[426056665,1782131575000,-500.0,0.00031232,2]
[426056664,1782131575000,-500.0,0.00031232,2]
[426056663,1782131575000,-1137.32,0.00031232,2]
[426056668,1782131575000,-562.32,0.00031232,2]
[426056659,1782131575000,-500.0,0.00031232,2]
[426056667,1782131575000,-515.21,0.00031232,2]
[426056672,1782131575000,-807.35,0.00031232,2]
[426056671,1782131575000,-359.33993864,0.00031232,2]
[426056675,1782131575000,-528.44,0.00031232,2]
[426056673,1782131575000,-500.0,0.00031232,2]
[426056670,1782131575000,-500.0,0.00031232,2]
[426056669,1782131575000,-500.0,0.00031232,2]
[426056678,1782131575000,-593.04,0.00031232,2]
[426056674,1782131575000,-721.3,0.00031232,2]
[426056677,1782131575000,-501.54,0.00031232,2]
[426056676,1782131575000,-678.94,0.00031232,2]
[426056619,1782131575000,-425.36,0.00031175,2]
[426056656,1782131575000,-511.5,0.00031232,2]
[426056650,1782131575000,-500.0,0.00031232,2]
[426056666,1782131575000,-688.82,0.00031232,2]
[426056657,1782131575000,-586.89,0.00031232,2]
[426056627,1782131575000,-500.0,0.00031232,2]
[426056652,1782131575000,-500.0,0.00031232,2]
[426056625,1782131575000,-819.26,0.00031232,2]
[426056630,1782131575000,-633.7,0.00031232,2]
[426056631,1782131575000,-513.94,0.00031232,2]
[426056628,1782131575000,-680.9,0.00031232,2]
[426056626,1782131575000,-585.84,0.00031232,2]
[426056629,1782131575000,-970.83,0.00031232,2]
[426056632,1782131575000,-947.67,0.00031232,2]
[426056634,1782131575000,-500.0,0.00031232,2]
[426056635,1782131575000,-539.78,0.00031232,2]
[426056633,1782131575000,-1724.88,0.00031232,2]
[426056638,1782131575000,-2673.46,0.00031232,2]
[426056636,1782131575000,-1276.25,0.00031232,2]
[426056648,1782131575000,-739.37,0.00031232,2]
[426056655,1782131575000,-500.0,0.00031232,2]
[426056637,1782131575000,-666.68,0.00031232,2]
[426056647,1782131575000,-661.35,0.00031232,2]
[426056642,1782131575000,-500.0,0.00031232,2]
[426056641,1782131575000,-500.0,0.00031232,2]
[426056643,1782131575000,-500.51,0.00031232,2]
[426056644,1782131575000,-557.46,0.00031232,2]
[426056645,1782131575000,-1180.24,0.00031232,2]
[426056646,1782131575000,-500.0,0.00031232,2]
[426056639,1782131575000,-755.16,0.00031232,2]
[426056640,1782131575000,-695.0,0.00031232,2]
[426056712,1782131576000,-500.0,0.00031232,2]
[426056716,1782131576000,-834.64,0.00031232,2]
[426056721,1782131576000,-900.89,0.00031232,2]
[426056717,1782131576000,-790.49,0.00031232,2]
[426056710,1782131576000,-554.01,0.00031232,2]
[426056713,1782131576000,-666.78,0.00031232,2]
[426056714,1782131576000,-790.07,0.00031232,2]
[426056708,1782131576000,-670.91,0.00031232,2]
[426056715,1782131576000,-504.09,0.00031232,2]
[426056722,1782131576000,-500.0,0.00031232,2]
[426056711,1782131576000,-718.0,0.00031232,2]
[426056723,1782131576000,-500.0,0.00031232,2]
[426056729,1782131576000,-947.18,0.00031232,2]
[426056719,1782131576000,-853.2,0.00031232,2]
[426056720,1782131576000,-564.32,0.00031232,2]
[426056724,1782131576000,-715.39,0.00031232,2]
[426056726,1782131576000,-702.96,0.00031232,2]
[426056725,1782131576000,-636.73,0.00031232,2]
[426056727,1782131576000,-992.54,0.00031232,2]
[426056728,1782131576000,-617.25,0.00031232,2]
[426056733,1782131576000,-500.0,0.00031232,2]
[426056731,1782131576000,-526.91787309,0.00031232,2]
[426056732,1782131576000,-524.23,0.00031232,2]
[426056730,1782131576000,-500.0,0.00031232,2]
[426056705,1782131576000,-500.0,0.00031232,2]
[426056718,1782131576000,-510.33,0.00031232,2]
[426056709,1782131576000,-540.55,0.00031232,2]
[426056679,1782131576000,-1181.38,0.00031232,2]
[426056706,1782131576000,-1046.3,0.00031232,2]
[426056739,1782131576000,-521.74,0.00031232,2]
[426056681,1782131576000,-500.0,0.00031232,2]
[426056691,1782131576000,-944.23,0.00031232,2]
[426056692,1782131576000,-500.0,0.00031232,2]
[426056680,1782131576000,-548.72,0.00031232,2]
[426056682,1782131576000,-691.46,0.00031232,2]
[426056686,1782131576000,-500.0,0.00031232,2]
[426056683,1782131576000,-725.12,0.00031232,2]
[426056685,1782131576000,-1255.65,0.00031232,2]
[426056688,1782131576000,-531.43,0.00031232,2]
[426056687,1782131576000,-703.04,0.00031232,2]
[426056690,1782131576000,-1040.83,0.00031232,2]
[426056707,1782131576000,-786.59,0.00031232,2]
[426056689,1782131576000,-617.49,0.00031232,2]
[426056693,1782131576000,-856.58,0.00031232,2]
[426056703,1782131576000,-936.99,0.00031232,2]
[426056696,1782131576000,-584.59,0.00031232,2]
[426056697,1782131576000,-608.59,0.00031232,2]
[426056700,1782131576000,-523.74,0.00031232,2]
[426056695,1782131576000,-500.0,0.00031232,2]
[426056698,1782131576000,-620.9760411,0.00031232,2]
[426056694,1782131576000,-850.25,0.00031232,2]
[426056702,1782131576000,-1501.08,0.00031232,2]
[426056701,1782131576000,-500.0,0.00031232,2]
[426056699,1782131576000,-500.0,0.00031232,2]
[426056704,1782131576000,-500.0,0.00031232,2]
[426056684,1782131576000,-500.0,0.00031232,2]
[426056734,1782131576000,-1250.12,0.00031232,2]
[426056750,1782131576000,-445.75065536,0.00031232,2]
[426056738,1782131576000,-788.02,0.00031232,2]
[426056769,1782131576000,-1050.73,0.00031232,2]
[426056773,1782131576000,-700.32,0.00031232,2]
[426056771,1782131576000,-510.38,0.00031232,2]
[426056770,1782131576000,-636.07,0.00031232,2]
[426056767,1782131576000,-3639.77,0.00031232,2]
[426056768,1782131576000,-500.0,0.00031232,2]
[426056772,1782131576000,-546.8,0.00031232,2]
[426056775,1782131576000,-500.0,0.00031232,2]
[426056778,1782131576000,-541.49,0.00031232,2]
[426056779,1782131576000,-590.33,0.00031232,2]
[426056781,1782131576000,-500.0,0.00031232,2]
[426056780,1782131576000,-986.53,0.00031232,2]
[426056765,1782131576000,-500.0,0.00031232,2]
[426056777,1782131576000,-526.09,0.00031232,2]
[426056786,1782131576000,-500.0,0.00031232,2]
[426056783,1782131576000,-694.68,0.00031232,2]
[426056784,1782131576000,-500.0,0.00031232,2]
[426056782,1782131576000,-1014.22,0.00031232,2]
[426056785,1782131576000,-696.96,0.00031232,2]